[Event "ESP-ch Teams Primera 2022"]
[Site "Sanxenxo Pontevedra"]
[Date "2022.09.20"]
[Round "4.21"]
[White "Alonso Moyano, Jonathan"]
[Black "Ushenina, Anna"]
[Result "1/2-1/2"]
[ECO "D00"]
[WhiteElo "2348"]
[BlackElo "2439"]
[Annotator "ChessBase"]
[PlyCount "234"]
[EventDate "2022.09.17"]
[EventType "team-tourn"]
[EventCountry "ESP"]
[SourceTitle "playchess.com"]
[Source "ChessBase"]
[SourceQuality "1"]
[TimeControl "5400+30"]

1. d4 {[%emt 0:00:03]} d5 {[%emt 0:00:19]} 2. Bf4 {[%emt 0:00:07]} Nf6 {[%emt 0:04:25]} 3. e3 {[%emt 0:00:24]} c5 {[%emt 0:00:06]} 4. Nf3 {[%emt 0:00:23]} Nc6 {[%emt 0:00:23]} 5. Nbd2 {[%emt 0:00:55]} Nh5 {[%emt 0:08:17]} 6. dxc5 {[%emt 0:09:36]} Nxf4 {[%emt 0:00:23]} 7. exf4 {[%emt 0:00:05]} g6 {[%emt 0:00:32]} 8. c3 {[%emt 0:02:18]} Bh6 {[%emt 0:03:02]} 9. g3 {[%emt 0:00:43]} Bg7 {[%emt 0:00:43]} 10. Nb3 {[%emt 0:01:43]} a5 {[%emt 0:00:42]} 11. a4 {[%emt 0:01:09]} O-O {[%emt 0:01:47]} 12. Bg2 {[%emt 0:08:20]} Bg4 {[%emt 0:33:23]} 13. h3 {[%emt 0:04:59]} Bxf3 {[%emt 0:00:08]} 14. Qxf3 {[%emt 0:00:07]} e6 {[%emt 0:00:27]} 15. O-O {[%emt 0:01:34]} Rb8 {[%emt 0:15:12]} 16. Rfd1 {[%emt 0:17:57]} b6 {[%emt 0:01:39]} 17. Rd2 {[%emt 0:02:48]} Qe7 {[%emt 0:06:38]} 18. Qe3 {[%emt 0:04:34]} bxc5 {[%emt 0:00:31]} 19. Nxc5 {[%emt 0:01:24]} d4 {[%emt 0:04:47]} 20. cxd4 {[%emt 0:01:58]} Nxd4 {[%emt 0:00:03]} 21. Rc1 {[%emt 0:04:34]} Rb4 {[%emt 0:06:24]} 22. Nd3 {[%emt 0:10:01]} Nb3 {[%emt 0:02:20]} 23. Nxb4 {[%emt 0:11:44]} Qxb4 {[%emt 0:00:05]} 24. Rdc2 {[%emt 0:00:51]} Nxc1 {[%emt 0:00:10]} 25. Qxc1 {[%emt 0:00:10]} Qxa4 {[%emt 0:00:17]} 26. Rc8 {[%emt 0:02:24]} Bf6 {[%emt 0:02:51]} 27. Rxf8+ {[%emt 0:03:20]} Kxf8 {[%emt 0:00:01]} 28. Bf1 {[%emt 0:00:08]} Qb4 {[%emt 0:02:37]} 29. b3 {[%emt 0:00:42]} Qxb3 {[%emt 0:00:37]} 30. Qc5+ {[%emt 0:00:06]} Kg7 {[%emt 0:00:04]} 31. Qxa5 {[%emt 0:00:08]} Bd4 {[%emt 0:00:08]} 32. Kg2 {[%emt 0:06:43]} Qb7+ {[%emt 0:00:05]} 33. Kh2 {[%emt 0:00:22]} Qf3 {[%emt 0:03:25]} 34. Bg2 {[%emt 0:00:26]} Qxf2 {[%emt 0:00:03]} 35. h4 {[%emt 0:00:05]} h5 {[%emt 0:01:22]} 36. Qa3 {[%emt 0:01:08]} Qe1 {[%emt 0:01:59]} 37. Kh3 {[%emt 0:01:05]} Qb1 {[%emt 0:01:12]} 38. Qf3 {[%emt 0:00:37]} Qb5 {[%emt 0:00:28]} 39. Kh2 {[%emt 0:00:46]} Qc5 {[%emt 0:00:07]} 40. Qe4 {[%emt 0:00:53]} Bf2 {[%emt 0:00:33]} 41. Qe2 {[%emt 0:00:55]} Bg1+ {[%emt 0:00:15]} 42. Kh1 {[%emt 0:00:01]} Be3 {[%emt 0:00:42]} 43. Qb2+ {[%emt 0:00:24]} Bd4 {[%emt 0:00:21]} 44. Qe2 {[%emt 0:00:57]} Qc3 {[%emt 0:01:21]} 45. Kh2 {[%emt 0:01:01]} Kh6 {[%emt 0:00:53]} 46. Qf3 {[%emt 0:00:42]} Qd2 {[%emt 0:00:55]} 47. Qe4 {[%emt 0:00:43]} Qd1 {[%emt 0:00:27]} 48. Qf3 {[%emt 0:00:26]} Qg1+ {[%emt 0:00:17]} 49. Kh3 {[%emt 0:00:02]} Qe1 {[%emt 0:00:27]} 50. Qe4 {[%emt 0:00:35]} Qd2 {[%emt 0:00:13]} 51. Kh2 {[%emt 0:00:25]} Kg7 {[%emt 0:00:25]} 52. Qf3 {[%emt 0:00:23]} Qa5 {[%emt 0:00:46]} 53. Qa8 {[%emt 0:00:37]} Qc5 {[%emt 0:00:58]} 54. Qc6 {[%emt 0:01:34]} Qa3 {[%emt 0:00:16]} 55. Qe4 {[%emt 0:00:33]} Bf6 {[%emt 0:00:30]} 56. Qa8 {[%emt 0:00:22]} Qd3 {[%emt 0:00:41]} 57. Qe4 {[%emt 0:00:09]} Qd2 {[%emt 0:00:11]} 58. Qf3 {[%emt 0:00:23]} Bd4 {[%emt 0:00:36]} 59. Qe4 {[%emt 0:00:20]} Bc3 {[%emt 0:00:24]} 60. Qf3 {[%emt 0:00:27]} Kf6 {[%emt 0:00:52]} 61. Qe4 {[%emt 0:00:26]} e5 {[%emt 0:00:32]} 62. fxe5+ {[%emt 0:00:41]} Bxe5 {[%emt 0:00:03]} 63. Qd5 {[%emt 0:00:19]} Qb4 {[%emt 0:00:25]} 64. Qe4 {[%emt 0:00:22]} Qd6 {[%emt 0:00:16]} 65. Qf3+ {[%emt 0:01:17]} Kg7 {[%emt 0:00:02]} 66. Kh3 {[%emt 0:01:03]} f5 {[%emt 0:01:36]} 67. Bf1 {[%emt 0:00:42]} Qd4 {[%emt 0:00:23]} 68. Kg2 {[%emt 0:00:24]} Bd6 {[%emt 0:00:47]} 69. Qd3 {[%emt 0:00:27]} Qe5 {[%emt 0:00:10]} 70. Qf3 {[%emt 0:00:17]} Qc5 {[%emt 0:00:37]} 71. Qb7+ {[%emt 0:00:22]} Kh6 {[%emt 0:00:11]} 72. Qf3 {[%emt 0:00:08]} Be5 {[%emt 0:00:11]} 73. Be2 {[%emt 0:00:55]} Qc1 {[%emt 0:00:54]} 74. Qf1 {[%emt 0:00:28]} Qd2 {[%emt 0:00:09]} 75. Qd1 {[%emt 0:00:24]} Qe3 {[%emt 0:00:29]} 76. Qd3 {[%emt 0:00:03]} Qc5 {[%emt 0:00:16]} 77. Qd2+ {[%emt 0:00:46]} Kh7 {[%emt 0:00:12]} 78. Qd7+ {[%emt 0:00:15]} Bg7 {[%emt 0:00:03]} 79. Qd3 {[%emt 0:00:34]} Qe5 {[%emt 0:00:11]} 80. Bf3 {[%emt 0:00:50]} Bf8 {[%emt 0:00:11]} 81. Qd7+ {[%emt 0:00:18]} Bg7 {[%emt 0:00:30]} 82. Qd2 {[%emt 0:00:25]} Qc7 {[%emt 0:00:03]} 83. Qd3 {[%emt 0:00:46]} Qe5 {[%emt 0:00:30]} 84. Qd2 {[%emt 0:00:15]} Bf6 {[%emt 0:00:19]} 85. Qd7+ {[%emt 0:00:15]} Be7 {[%emt 0:00:14]} 86. Qd5 {[%emt 0:00:39]} Qb2+ {[%emt 0:00:15]} 87. Kh3 {[%emt 0:00:24]} Qf6 {[%emt 0:02:21]} 88. Qc6 {[%emt 0:00:42]} Bd6 {[%emt 0:00:22]} 89. Qc4 {[%emt 0:01:20]} Qe5 {[%emt 0:01:32]} 90. Qf4 {[%emt 0:00:37]} Qxf4 {[%emt 0:01:17]} 91. gxf4 {[%emt 0:00:01]} Bxf4 {[%emt 0:00:01]} 92. Bc6 {[%emt 0:00:32]} Bd2 {[%emt 0:00:19]} 93. Be8 {[%emt 0:00:58]} Kg7 {[%emt 0:00:03]} 94. Bd7 {[%emt 0:00:09]} Kf6 {[%emt 0:00:17]} 95. Bc6 {[%emt 0:00:10]} Be1 {[%emt 0:01:09]} 96. Be8 {[%emt 0:00:12]} f4 {[%emt 0:00:25]} 97. Bc6 {[%emt 0:00:15]} Ke5 {[%emt 0:01:00]} 98. Be8 {[%emt 0:00:11]} Kf5 {[%emt 0:00:20]} 99. Bd7+ {[%emt 0:00:29]} Ke4 {[%emt 0:00:40]} 100. Be8 {[%emt 0:00:17]} Kf5 {[%emt 0:00:35]} 101. Bd7+ {[%emt 0:00:07]} Kf6 {[%emt 0:00:03]} 102. Bc6 {[%emt 0:00:08]} Bb4 {[%emt 0:00:27]} 103. Be4 {[%emt 0:00:52]} Kg7 {[%emt 0:00:27]} 104. Bf3 {[%emt 0:00:43]} Kf6 {[%emt 0:00:43]} 105. Be4 {[%emt 0:00:06]} Be7 {[%emt 0:00:15]} 106. Kg2 {[%emt 0:00:45]} Kg7 {[%emt 0:00:18]} 107. Kf3 {[%emt 0:00:09]} Bxh4 {[%emt 0:00:09]} 108. Bxg6 {[%emt 0:00:22]} Kxg6 {[%emt 0:00:03]} 109. Kxf4 {[%emt 0:00:05]} Kf6 {[%emt 0:00:27]} 110. Kf3 {[%emt 0:00:07]} Kf5 {[%emt 0:00:03]} 111. Kg2 {[%emt 0:00:06]} Kg4 {[%emt 0:00:04]} 112. Kh2 {[%emt 0:00:05]} Bf6 {[%emt 0:00:09]} 113. Kg2 {[%emt 0:00:05]} h4 {[%emt 0:00:03]} 114. Kh2 {[%emt 0:00:05]} h3 {[%emt 0:00:04]} 115. Kh1 {[%emt 0:00:06]} Kg3 {[%emt 0:00:03]} 116. Kg1 {[%emt 0:00:04]} Bd4+ {[%emt 0:00:03]} 117. Kh1 {[%emt 0:00:05]} h2 {[%emt 0:00:03]} 1/2-1/2

[Event "ESP-ch Teams Primera 2022"]
[Site "Sanxenxo Pontevedra"]
[Date "2022.09.20"]
[Round "4.22"]
[White "Ladron De Guevara Pinto, Paolo"]
[Black "Martinez Ramirez, Erik"]
[Result "1-0"]
[ECO "A50"]
[WhiteElo "2429"]
[BlackElo "2181"]
[Annotator "ChessBase"]
[PlyCount "57"]
[EventDate "2022.09.17"]
[EventType "team-tourn"]
[EventCountry "ESP"]
[SourceTitle "playchess.com"]
[Source "ChessBase"]
[SourceQuality "1"]
[TimeControl "5400+30"]

1. d4 {[%emt 0:00:03]} Nf6 {[%emt 0:00:06]} 2. c4 {[%emt 0:00:06]} g6 {[%emt 0:00:07]} 3. h4 {[%emt 0:00:03]} Bg7 {[%emt 0:02:35]} 4. Nc3 {[%emt 0:00:15]} d5 {[%emt 0:02:11]} 5. h5 {[%emt 0:00:12]} gxh5 {[%emt 0:08:03]} 6. cxd5 {[%emt 0:04:39]} Nxd5 {[%emt 0:17:40]} 7. Rxh5 {[%emt 0:08:44]} Nf6 {[%emt 0:06:44]} 8. Rh4 {[%emt 0:02:38]} Nc6 {[%emt 0:11:24]} 9. Nf3 {[%emt 0:01:06]} e6 {[%emt 0:20:59]} 10. e4 {[%emt 0:08:56]} b6 {[%emt 0:00:03]} 11. Bb5 {[%emt 0:14:20]} Bd7 {[%emt 0:00:01]} 12. e5 {[%emt 0:20:11]} Nd5 {[%emt 0:03:06]} 13. Nxd5 {[%emt 0:00:20]} exd5 {[%emt 0:00:02]} 14. Bxc6 {[%emt 0:12:32]} Bxc6 {[%emt 0:00:03]} 15. Qc2 {[%emt 0:00:04]} Qd7 {[%emt 0:04:01]} 16. Rxh7 {[%emt 0:04:40]} Rxh7 {[%emt 0:14:54]} 17. Qxh7 {[%emt 0:00:05]} Qg4 {[%emt 0:00:05]} 18. Bg5 {[%emt 0:10:59]} Qxg2 {[%emt 0:01:45]} 19. Ke2 {[%emt 0:03:37]} Qg4 {[%emt 0:00:27]} 20. Rg1 {[%emt 0:03:17]} Qe4+ {[%emt 0:00:05]} 21. Qxe4 {[%emt 0:00:04]} dxe4 {[%emt 0:00:04]} 22. Nd2 {[%emt 0:00:53]} Bd5 {[%emt 0:03:30]} 23. Ke3 {[%emt 0:00:51]} c5 {[%emt 0:00:08]} 24. Nxe4 {[%emt 0:00:36]} cxd4+ {[%emt 0:00:11]} 25. Kxd4 {[%emt 0:00:05]} Bxa2 {[%emt 0:00:09]} 26. f4 {[%emt 0:01:58]} Bf8 {[%emt 0:01:37]} 27. Nf6+ {[%emt 0:00:35]} Kd8 {[%emt 0:00:11]} 28. Ra1 {[%emt 0:01:00]} Be6 {[%emt 0:00:40]} 29. Nd5+ {[%emt 0:00:05]} 1-0

[Event "ESP-ch Teams Primera 2022"]
[Site "Sanxenxo Pontevedra"]
[Date "2022.09.20"]
[Round "4.23"]
[White "Bosque Ortega, Xavier"]
[Black "Alshameary Puente, Ismael"]
[Result "0-1"]
[ECO "A45"]
[WhiteElo "2164"]
[BlackElo "2332"]
[Annotator "ChessBase"]
[PlyCount "72"]
[EventDate "2022.09.17"]
[EventType "team-tourn"]
[EventCountry "ESP"]
[SourceTitle "playchess.com"]
[Source "ChessBase"]
[SourceQuality "1"]
[TimeControl "5400+30"]

1. d4 Nf6 2. Bf4 g6 3. e3 Bg7 4. h3 O-O 5. Nf3 d6 6. Be2 c5 7. c3 cxd4 8. exd4 Qb6 9. Qb3 Be6 10. Qxb6 axb6 11. a3 Nd5 12. Bh2 Bd7 13. O-O b5 14. Nbd2 Bc6 15. Rfe1 {[%emt 0:20:25]} Nd7 {[%emt 0:22:27]} 16. Nf1 {[%emt 0:09:29]} Bh6 {[%emt 0:07:04]} 17. Bd3 {[%emt 0:03:17]} Rae8 {[%emt 0:29:48]} 18. Rad1 {[%emt 0:23:33]} f5 {[%emt 0:09:48]} 19. a4 {[%emt 0:10:49]} bxa4 {[%emt 0:07:45]} 20. c4 {[%emt 0:00:16]} Nb4 {[%emt 0:00:07]} 21. d5 {[%emt 0:00:12]} Nxd3 {[%emt 0:00:07]} 22. Rxe7 {[%emt 0:26:05]} N7e5 {[%emt 0:06:41]} 23. Nxe5 {[%emt 0:05:15]} Nxe5 {[%emt 0:04:07]} 24. Rc7 {[%emt 0:01:09]} Rc8 {[%emt 0:05:51]} 25. Rxc8 {[%emt 0:01:26]} Rxc8 {[%emt 0:00:01]} 26. dxc6 {[%emt 0:00:53]} Rxc6 {[%emt 0:00:02]} 27. c5 {[%emt 0:00:14]} Rxc5 {[%emt 0:01:41]} 28. Rxd6 {[%emt 0:00:02]} f4 {[%emt 0:04:38]} 29. Rb6 {[%emt 0:00:47]} Rc1 {[%emt 0:00:46]} 30. Rxb7 {[%emt 0:00:57]} Nd3 {[%emt 0:01:47]} 31. Rb8+ {[%emt 0:00:31]} Kf7 {[%emt 0:00:38]} 32. Rb7+ {[%emt 0:00:02]} Kf6 {[%emt 0:00:15]} 33. Rxh7 {[%emt 0:00:17]} Bg7 {[%emt 0:00:09]} 34. Bxf4 {[%emt 0:01:13]} Nxf4 {[%emt 0:00:08]} 35. g3 {[%emt 0:00:08]} Nh5 {[%emt 0:00:48]} 36. Kg2 {[%emt 0:00:28]} Ke5 0-1

[Event "ESP-ch Teams Primera 2022"]
[Site "Sanxenxo Pontevedra"]
[Date "2022.09.20"]
[Round "4.24"]
[White "Calzetta Ruiz, Monica"]
[Black "Castillo Escario, Yolanda"]
[Result "1-0"]
[ECO "C60"]
[WhiteElo "2227"]
[BlackElo "2035"]
[Annotator "TA"]
[PlyCount "95"]
[EventDate "2022.09.17"]
[EventType "team-tourn"]
[EventCountry "ESP"]
[SourceTitle "playchess.com"]
[Source "ChessBase"]
[SourceQuality "1"]
[TimeControl "5400+30"]

{[%evp 11,95,22,33,37,36,33,31,33,41,43,45,66,55,53,54,34,35,36,34,34,34,32,35,35,35,35,35,30,36,30,31,31,36,30,30,30,31,37,30,30,39,20,166,163,200,202,231,225,233,224,240,226,350,343,330,330,339,336,437,448,445,441,601,438,415,0,585,577,1078,1051,943,878,1433,2877,2439,1280,1088,1057,2711,2393,2806,2786,2359,2133,1808,1748]} 1. e4 {[%emt 0:00:05]} e5 {[%emt 0:00:06]} 2. Nf3 {[%emt 0:00:06]} Nc6 {[%emt 0:00:06]} 3. Bb5 {[%emt 0:00:05]} Nge7 {[%emt 0:00:05]} 4. Nc3 {[%emt 0:01:19][%cal Bb1c3,Bc3d5,Bd5f6][%mdl 32]} g6 {[%emt 0:00:08]} 5. d4 {[%emt 0:00:41]} exd4 {[%emt 0:00:09]} 6. Nd5 {[%emt 0:00:21]} Bg7 $1 {[%emt 0:00:08]} 7. Bg5 {[%emt 0:00:20] Black must now prevent Bxc6. C60: Ruy Lopez: Unusual Black 3rd moves and 3...g6.} h6 {[%emt 0:00:11]} 8. Bf6 {[%emt 0:00:27]} Bxf6 {[%emt 0:00:10]} 9. Nxf6+ {[%emt 0:00:06] White is slightly better.} Kf8 {[%emt 0:00:04]} 10. Qd2 {[%emt 0:01:13]} d5 {[%emt 0:00:15]} 11. Bxc6 {[%emt 0:00:22]} (11. Nxd4 dxe4 12. O-O-O Qxd4 13. Qxd4 Nxd4 14. Rxd4 Be6 $11) 11... Nxc6 {[%emt 0:00:15]} 12. Nxd5 {[%emt 0:00:14] Pair of Knights!} Bf5 $1 {[%emt 0:00:13]} 13. Nxc7 {[%emt 0:00:10] is the legacy move (13.Qf4).} ({But not} 13. exf5 $6 Qxd5 14. O-O Qxf5 $11) ({Much weaker is} 13. Nxd4 Bxe4 14. Nxc6 Qxd5 $15) 13... Qxc7 {[%emt 0:00:15]} 14. exf5 {[%emt 0:00:05]} Re8+ {[%emt 0:00:11]} 15. Kf1 {[%emt 0:00:05]} gxf5 {[%emt 0:00:48]} 16. g3 {[%emt 0:00:09]} Re4 {[%emt 0:00:42]} 17. Kg2 {[%emt 0:00:53]} Kg7 {[%emt 0:00:29]} 18. Rhe1 {[%emt 0:10:52]} Rhe8 {[%emt 0:00:14] [#]} 19. Rad1 $146 {[%emt 0:22:23]} ({Predecessor:} 19. b4 Qd6 20. b5 Ne5 21. Rxe4 fxe4 22. Nxd4 Qf6 23. Qf4 Qxf4 24. gxf4 Nf3 25. Nxf3 exf3+ 26. Kxf3 {½-½ (60) Calzetta Ruiz,M (2223)-Sarkar,J (2351) Stockholm 2018}) 19... Rxe1 {[%emt 0:11:09]} 20. Rxe1 {[%emt 0:00:28]} Rxe1 {[%emt 0:01:54]} 21. Qxe1 $11 {[%emt 0:01:37][%mdl 4096] Endgame KQN-KQN} Qd6 {[%emt 0:09:18]} 22. Nh4 {[%emt 0:17:02]} Qd5+ {[%emt 0:14:34]} 23. f3 {[%emt 0:00:35]} Qe6 {[%emt 0:18:41]} 24. Qd2 {[%emt 0:02:42]} (24. Kf2 {feels hotter.} f4 25. Qd2 Qh3 26. Qxf4 Qxh2+ 27. Ng2) 24... Qe5 {[%emt 0:02:08]} 25. a3 {[%emt 0:01:13]} Ne7 {[%emt 0:07:13]} 26. Kf1 {[%emt 0:04:18]} Ng6 {[%emt 0:06:04] [#] White now steadily converts the win.} (26... f4 $11 {and Black has nothing to worry.}) 27. Qxd4 $3 $18 {[%emt 0:01:27][%cal Of3f4][%mdl 512] And now f4! would win.} Kf6 {[%emt 0:05:44] [#]} (27... f4 28. Nf5+) 28. Qxe5+ {[%emt 0:01:47]} ({Much less strong is} 28. Qxa7 $6 Qb5+ 29. Kf2 Qxb2 $14) 28... Nxe5 {[%emt 0:00:37] [#] KN-KN} 29. b3 {[%emt 0:01:09] Against Nc4} Nc6 {[%emt 0:02:25]} 30. Ke2 {[%emt 0:01:21]} Ke5 {[%emt 0:00:49]} 31. Ke3 {[%emt 0:08:50] Against f4+} Ne7 {[%emt 0:07:07]} (31... f4+ $142 32. gxf4+ Ke6) 32. f4+ {[%emt 0:00:37]} Kd5 {[%emt 0:00:09]} 33. c4+ {[%emt 0:02:03]} Kd6 {[%emt 0:03:29]} 34. Nf3 {[%emt 0:00:38]} f6 {[%emt 0:03:11]} 35. Nd4 {[%emt 0:00:42]} Kc5 {[%emt 0:00:27]} 36. Kd3 {[%emt 0:03:12]} a5 {[%emt 0:00:43]} 37. Ne6+ {[%emt 0:01:40]} Kd6 {[%emt 0:00:51]} 38. Nd4 {[%emt 0:01:38]} (38. Ng7 $142) 38... Kc5 {[%emt 0:00:14]} 39. h4 {[%emt 0:00:37][%cal Bh2h4,Bh4h5][%mdl 32] White is clearly winning.} b6 {[%emt 0:02:16]} 40. h5 {[%emt 0:00:05]} Kd6 {[%emt 0:00:39]} 41. b4 {[%emt 0:01:46]} axb4 {[%emt 0:01:44]} 42. axb4 {[%emt 0:00:03]} Kd7 {[%emt 0:01:16]} 43. Nb5 {[%emt 0:01:57] Nd4 is the strong threat.} Nc6 {[%emt 0:01:13]} 44. Kc3 {[%emt 0:00:15]} Ne7 {[%emt 0:00:43]} 45. Nd4 {[%emt 0:00:38]} Kd6 {[%emt 0:00:25]} 46. Kb3 {[%emt 0:00:43]} Kc7 {[%emt 0:01:54]} 47. Ka4 {[%emt 0:00:18]} Kb7 {[%emt 0:00:57]} 48. Kb5 {[%emt 0:00:22] Weighted Error Value: White=0.20 (precise) /Black=0.22 (precise)} 1-0

[Event "ESP-ch Teams Primera 2022"]
[Site "Sanxenxo Pontevedra"]
[Date "2022.09.21"]
[Round "5.1"]
[White "Cordova, Emilio"]
[Black "Bacrot, Etienne"]
[Result "1/2-1/2"]
[ECO "A07"]
[WhiteElo "2550"]
[BlackElo "2647"]
[Annotator "TA"]
[PlyCount "122"]
[EventDate "2022.09.17"]
[EventType "team-tourn"]
[EventCountry "ESP"]
[SourceTitle "playchess.com"]
[Source "ChessBase"]
[SourceQuality "1"]
[TimeControl "5400+30"]

{[%evp 9,121,14,21,25,24,16,12,15,25,0,9,7,7,6,7,0,2,2,0,0,1,0,0,0,0,0,0,0,0,0,0,0,0,0,0,0,0,0,0,0,14,12,4,7,14,5,18,0,0,-29,-33,-73,-69,-78,-70,-114,-98,-180,-111,-106,-85,-97,-112,-97,-91,-239,-239,-239,-239,-237,-158,-158,-158,-180,-180,-380,-289,-382,-366,-420,-277,-314,-259,-334,-275,-223,-112,-325,-248,-225,-67,-468,-468,-2160,-2078,-1431,-43,-43,-58,-58,-58,-58,-58,-58,0,0,0,0,0,0,0,0,0,-1693]} 1. Nf3 {[%emt 0:00:07]} d5 {[%emt 0:08:34]} 2. g3 {[%emt 0:00:55]} Nf6 {[%emt 0:00:13]} 3. Bg2 {[%emt 0:00:24]} c6 {[%emt 0:00:07]} 4. O-O {[%emt 0:00:58]} Bg4 {[%emt 0:00:18]} 5. h3 {[%emt 0:06:57]} Bh5 {[%emt 0:00:14]} 6. c4 {[%emt 0:00:56] A07: Réti Opening: New York and Capablanca Systems.} e6 {[%emt 0:00:25]} 7. d4 {[%emt 0:01:02]} Nbd7 {[%emt 0:00:08]} 8. cxd5 {[%emt 0:00:48] The position is equal.} exd5 {[%emt 0:00:05]} 9. Nc3 {[%emt 0:00:56] 9.Ne5 is setting a new trend.} Bd6 {[%emt 0:01:16]} 10. Nd2 {[%emt 0:04:03] [#]} Bg6 $146 {[%emt 0:11:38]} ({Predecessor:} 10... O-O 11. g4 Bg6 12. f4 h6 13. f5 Bh7 14. e4 dxe4 15. Ndxe4 Nxe4 16. Nxe4 Nf6 17. Nxd6 Qxd6 {½-½ (32) Cirulis,I (2246)-Khlopov,S (2327) LSS email 2020}) 11. e4 {[%emt 0:08:44]} dxe4 {[%emt 0:00:44]} (11... Nxe4 {looks sharper.} 12. Ndxe4 dxe4 13. Nxe4 Bxe4 14. Bxe4 Nf6) 12. Ndxe4 {[%emt 0:00:12]} Nxe4 {[%emt 0:00:23]} 13. Nxe4 {[%emt 0:00:08]} Bxe4 {[%emt 0:01:24]} 14. Bxe4 {[%emt 0:00:06]} O-O {[%emt 0:01:34]} 15. Bc2 {[%emt 0:05:13]} ({Reject} 15. Qh5 Nf6 16. Qf5 Nxe4 17. Qxe4 Re8 $15) 15... Nb6 16. Qd3 {[%emt 0:07:30][%csl Gc2][%cal Rd3h7] [#]} g6 {[%emt 0:06:11]} 17. Bb3 {[%emt 0:08:44]} Be5 {[%emt 0:06:19]} 18. Rd1 {[%emt 0:02:52]} Bg7 {[%emt 0:00:18]} 19. h4 {[%emt 0:00:47]} Qd7 {[%emt 0:02:06]} 20. Qf3 {[%emt 0:02:23]} a5 {[%emt 0:07:42]} 21. a4 {[%emt 0:00:28]} Nd5 {[%emt 0:01:04]} 22. Bg5 {[%emt 0:09:10]} Rfe8 {[%emt 0:09:27]} 23. Rac1 {[%emt 0:01:43]} Re6 {[%emt 0:03:03]} 24. Rc5 {[%emt 0:10:59][%cal Rb3d5]} h6 {[%emt 0:05:21]} 25. Bxd5 {[%emt 0:05:23]} cxd5 {[%emt 0:00:12]} 26. Rxd5 {[%emt 0:03:38]} Qxa4 {[%emt 0:00:20]} 27. b3 {[%emt 0:00:36]} Qe8 {[%emt 0:02:39]} 28. Be3 {[%emt 0:03:07]} b5 {[%emt 0:07:53]} 29. Ra1 {[%emt 0:12:07][%cal Od5b5]} Rea6 {[%emt 0:09:23]} 30. Qe2 {[%emt 0:00:29]} Rb6 {[%emt 0:00:47]} 31. Qd2 {[%emt 0:01:06]} Qe4 {[%emt 0:01:49]} 32. Rd7 {[%emt 0:02:36]} a4 {[%emt 0:04:37]} 33. Qc3 {[%emt 0:01:17]} (33. Rc7 $17) 33... Rbb8 {[%emt 0:02:32]} (33... a3 $19 {And now ...Rc6 would win.} 34. Qc7 Rba6) 34. bxa4 $17 {[%emt 0:00:15]} bxa4 {[%emt 0:01:19][%cal Oa4a3]} 35. Qc4 {[%emt 0:00:45]} Qf5 {[%emt 0:00:58]} 36. Rd5 {[%emt 0:00:34]} Qf3 {[%emt 0:02:11]} 37. Rb5 {[%emt 0:00:20]} (37. Qc6 $17 Kh7 38. Rc5 Qxc6 39. Rxc6) 37... Rxb5 $19 {[%emt 0:01:13]} 38. Qxb5 {[%emt 0:00:04]} a3 {[%emt 0:00:13]} 39. Ra2 {[%emt 0:00:13]} Bxd4 {[%emt 0:01:29]} 40. Bxd4 {[%emt 0:00:39]} Qd1+ {[%emt 0:00:06]} 41. Kh2 {[%emt 0:00:23]} Qxd4 {[%emt 0:00:06][%mdl 4096] Endgame KQR-KQR} 42. h5 $2 {[%emt 0:00:28]} (42. Qb7 Ra7 43. Qb3) 42... Qa4 {[%emt 0:00:33]} 43. Qe2 {[%emt 0:00:23]} g5 {[%emt 0:00:31]} 44. Qf3 {[%emt 0:00:12]} Qa5 {[%emt 0:01:33]} 45. Kg1 {[%emt 0:01:17]} Ra6 {[%emt 0:01:18]} 46. Kh2 {[%emt 0:00:02]} Qc5 {[%emt 0:01:03]} 47. Qd3 {[%emt 0:00:25]} Ra7 {[%emt 0:01:16]} (47... Ra8 $19 {Hoping for ...g4.} 48. Kg2 Kg7) 48. Qf3 $2 {[%emt 0:00:24]} (48. Rc2 $17 Qf8 49. Ra2) 48... Kg7 {[%emt 0:00:31]} 49. Qd3 {[%emt 0:01:09]} g4 {[%emt 0:00:35]} (49... Ra4 $19 {Threatens to win with ...g4.} 50. f3 Qb4) 50. Kg2 $2 {[%emt 0:00:39][%mdl 8192]} (50. Qe4 $1 $15) 50... Ra4 {[%emt 0:00:16]} 51. Qd1 {[%emt 0:00:53]} (51. Rc2 $142 Qd4 52. Qb3 Qe4+ 53. Kg1 Qe1+ 54. Kg2 Qe4+ 55. Kg1 Qe1+ 56. Kg2) 51... Rd4 {[%emt 0:00:48] ( -> ...Qd5+)} 52. Qa1 {[%emt 0:00:13] [#]} Qd5+ $2 {[%emt 0:00:45]} (52... Kh7 $1 $19 {...Qd5+ is the strong threat.} 53. Qb1+ Kg8) 53. Kh2 $1 $15 {[%emt 0:00:04] Black must now prevent Rd2.} ({Avoid the trap} 53. Kg1 $2 Kg8 54. Kh2 Qxh5+ 55. Kg1 Qd5 $19) 53... Kh7 {[%emt 0:00:42]} 54. Qb1+ {[%emt 0:00:12]} Kg8 {[%emt 0:00:27]} 55. Rxa3 {[%emt 0:00:29]} Rd2 $36 {[%emt 0:00:43][%mdl 2048] Black has some pressure.} ({Much worse is} 55... Rd1 56. Ra8+ Kg7 57. Qb2+ Qd4 58. Qxd4+ Rxd4 59. Kg2 $11) 56. Qe1 {[%emt 0:01:30][%cal Oa3a8]} Rd1 {[%emt 0:00:30]} ({Black should try} 56... Qxh5+ $15 57. Kg1 Qd5) 57. Ra5 $11 {[%emt 0:00:32] Strongly threatening Qe8+.} Qf3 {[%emt 0:00:06]} 58. Ra8+ $1 {[%emt 0:00:24]} Kh7 {[%emt 0:00:05]} 59. Rh8+ $1 {[%emt 0:00:11]} Kxh8 {[%emt 0:00:11]} (59... Kg7 $5 60. Qe5+ $8 f6 61. Qe7+ Kxh8 62. Qf8+ Kh7 63. Qf7+ Kh8 64. Qf8+ Kh7 65. Qf7+ Kh8 66. Qf8+ $11) 60. Qe8+ {[%emt 0:00:15]} Kg7 {[%emt 0:00:06]} 61. Qh8+ {[%emt 0:00:03]} Kxh8 {[%emt 0:00:05] Weighted Error Value: White=0.45/Black=0.26 (precise)} 1/2-1/2